Workbook

Sheet Začátek
A2: Začínáme se vzorci
A3: Projděte si pár kroků, které vás naučí pracovat se vzorci a funkcemi v Excelu, nejvýkonnější tabulkové aplikaci na světě.
A4: Na začátek přejdete stisknutím CTRL+HOME. Pokud chcete začít s prohlídkou, stiskněte CTRL+PAGE DOWN.

Sheet Základy
A1: Základy: matematické výpočty v Excelu
A2: Ke sčítání, odečítání, násobení a dělení v Excelu nemusíte používat žádné předdefinované funkce. Stačí použít základní operátory: +, -, *, /. Všechny vzorce začínají znaménkem rovná se (=). | C2: Použít čísla: | E2: Operace: | F2: Vzorce: | G2: Odpovědi:
A3: Pokud chcete čísla sečíst, vyberte buňku F3, zadejte =C3+C4 a stiskněte Enter. | C3: 1 | E3: Sčítání (+) | G3: =C3+C4 -> 3
A4: Pokud chcete čísla odečíst, vyberte buňku F4, zadejte =C3-C4 a stiskněte Enter. | C4: 2 | E4: Odečítání (-) | G4: =C3-C4 -> -1
A5: Pokud chcete čísla vynásobit, vyberte buňku F5, zadejte =C3*C4 a stiskněte Enter. | E5: Násobení (*) | G5: =C3*C4 -> 2
A6: Pokud chcete čísla vydělit, vyberte buňku F6, zadejte =C3/C4 a stiskněte Enter. | E6: Dělení (/) | G6: =C3/C4 -> 0.5
A7: Všimněte si: Změňte čísla v buňkách C3 a C4 a podívejte se, jak se automaticky změní výsledky vzorců. | E7: Umocnění (^) | G7: =C3^C4 -> 1
A8: BONUS: K umocňování hodnot můžete použít symbol stříška (^), například =A1^A2. Zadat ho můžete kombinací kláves Ctrl+Alt+š, kterou je třeba potvrdit mezerníkem. Do buňky F7 zadejte =C3^C4.
A9: Podívat se na to podrobněji
A10: Další krok
A11: Další informace o vzorcích, buňkách a oblastech
A12: Excel tvoří jednotlivé buňky, které jsou seskupené do řádků a sloupců. Řádky jsou číslované a sloupce jsou označené písmeny. K dispozici je více než 1 milion řádků a 16 000 sloupců a vzorce můžete vkládat do kterýchkoliv z nich.
A13: Vzorce můžou obsahovat odkazy na buňky, oblasti odkazů na buňky, operátory a konstanty. Toto všechno jsou příklady vzorců: =A1+B1 =10+20 =SUMA(A1:A10)
A14: Můžete si všimnout, že ve třetím příkladu výše jsme použili funkci SUMA. Funkce je předdefinovaný příkaz, který vezme hodnotu nebo hodnoty, provede s nimi nějaký výpočet a vrátí výsledek. Funkce SUMA například vezme odkazy na buňky nebo oblasti, které zadáte, a sečte je. V tomto příkladu sečte buňky A1 až A10. Excel nabízí více než 400 funkcí, které můžete prozkoumat na kartě Vzorce.
A15: Vzorce s funkcemi začínají znaménkem rovná se, za kterým je název funkce a její argumenty (hodnoty, které funkce používá k výpočtu) uzavřené v závorkách.
A16: Vzorec se potvrzuje stisknutím klávesy Enter. Když ji stisknete, vzorec se vypočítá a v buňce se zobrazí výsledek. Pokud chcete vidět samotný vzorec, můžete se podívat na řádek vzorců pod pásem karet nebo stisknutím klávesy F2 přejít do režimu úprav, ve kterém vzorec uvidíte v buňce. Když pak zase stisknete klávesu Enter, vzorec se bude považovat za dokončený a vypočítá se výsledek.
A17: Pár vysvětlivek ke vzorcům
A18: =10+20 je vzorec, kde 10 a 20 jsou konstanty a znaménko + je operátor.
A19: =SUMA(A1:A10) je vzorec, kde SUMA je název funkce, závorky obsahují argumenty funkce a A1:A10 je oblast buněk pro funkci.
A20: =SUMA(A1:A10;C1:C10) je vzorec, kde SUMA je název funkce, závorky obsahují argumenty funkce a A1:A10;C1:C10 jsou oblasti buněk pro funkci oddělené středníkem.
A21: JE DOBRÉ VĚDĚT: Konstanty jsou hodnoty, které zadáte do buněk nebo vzorců. Vzorec =10+20 může sice vrátit stejný výsledek jako =A1+B1, ale používání konstant se ve vzorcích příliš nedoporučuje. Proč? Protože konstantu nejde snadno vidět bez toho, abyste vybrali danou buňku a vyhledali ji v jejím vzorci. To může ztížit její pozdější změny. Mnohem jednodušší je umístit konstanty do buněk, kde se dají snadno upravit a kam na ně můžou odkazovat vzorce. Příklad: Vyberte níže žlutou buňku s hodnotou 12. Uvidíte, že jsme použili funkci SUMA s oblastí buněk. Nezadali jsme přímo do vzorce konstanty 4 a 8.
A22: Předchozí
A23: Další
A24: Další informace na webu
A25: Použití Excelu jako kalkulačky
A26: Přehled vzorců v Excelu
A27: Funkce Excelu (podle kategorie)
A28: Funkce Excelu (podle abecedy)
A29: Bezplatná školení k Excelu online
J40: Hodnoty
J41: 4
J42: 8
J43: =SUM(J41:J42) -> 12

Sheet Úvod do funkcí
A1: Úvod do funkcí
A2: Funkce umožňují dělat celou řadu věcí, například řešit matematické operace, vyhledávat hodnoty, nebo dokonce i provádět výpočty s daty a časy. Pojďme si vyzkoušet několik způsobů, jak sečíst hodnoty pomocí funkce SUMA. | C2: Ovoce | D2: Množství | F2: Maso | G2: Množství
A3: Do sloupce Množství vedle sloupce Ovoce zadejte do buňky D7 vzorec =SUMA(D3:D6). Můžete také zadat =SUMA(, pak vybrat oblast myší a stisknout klávesu Enter. Tento vzorec sečte hodnoty v buňkách D3, D4, D5 a D6. Odpověď by měla být 170. | C3: Jablka | D3: 50 | F3: Hovězí | G3: 50
A4: Teď pojďme vyzkoušet funkci Automatické shrnutí. Vyberte buňku pod množstvími masa (tj. buňku G7) a potom přejděte na Vzorce > Automatické shrnutí > vyberte Součet. Uvidíte, že Excel za vás automaticky zadá vzorec. Potvrďte ho stisknutím klávesy Enter. Funkce Automatické shrnutí nabízí všechny nejčastější funkce. | C4: Pomeranče | D4: 20 | F4: Kuřecí | G4: 30
A5: Tady je šikovná klávesová zkratka. Vyberte buňku D15 a stiskněte klávesy Alt = a pak Enter. Tím se automaticky zadá funkce SUMA. | C5: Banány | D5: 60 | F5: Vepřové | G5: 10
A6: Podívat se na to podrobněji | C6: Citrony | D6: 40 | F6: Ryby | G6: 50
A7: BONUS Zkuste použít funkci POČET libovolným ze způsobů, které jste si už vyzkoušeli. Funkce POČET spočítá buňky v oblasti, které obsahují čísla. | C7: SUMA > | D7: =SUM(D3:D6) -> 170 | F7: SUMA >
A8: Další krok
A9: Další informace o funkcích | C9: Položka | D9: Množství | F9: Položka | G9: Množství
A10: Přejděte na kartu Vzorce a projděte si knihovnu funkcí, ve které jsou funkce uvedené podle kategorií, například Textové, Datum a čas apod. Tlačítko Vložit funkci vám umožní hledat funkce podle názvu a spustit průvodce funkcemi, který vám pomůže s vytvořením vzorce. Když stisknete klávesu = a začnete psát název funkce, Excel spustí technologii Intellisense, která zobrazí seznam všech funkcí začínajících napsanými písmeny. Až najdete tu, kterou chcete, stiskněte klávesu Tab a Excel název funkce automaticky dokončí a přichystá vám za ním levou závorku. Zobrazí také požadované a volitelné argumenty. Teď se pojďme podívat na anatomii několika funkcí. Funkce SUMA má tuto strukturu: | C10: Chleba | D10: 50 | F10: Chleba | G10: 50
A11: Pokud by tato funkce SUMA uměla mluvit, řekla by, že vrací součet všech hodnot v buňkách D35 až D38 a celém sloupci H. SUMA je název funkce, D35:D38 je oblast sloužící jako první argument (aspoň jeden argument je skoro vždycky povinný) a H:H je oblast sloužící jako druhý argument. Argumenty jsou oddělené středníky. Teď si ale pojďme ještě vyzkoušet jednu funkci, která nevyžaduje žádné argumenty. | C11: Koblihy | D11: 100 | F11: Koblihy | G11: 100
A12: Funkce DNES vrací aktuální datum. Její výsledek se automaticky zaktualizuje vždy, když Excel přepočítá sešit. | C12: Sušenky | D12: 40 | F12: Sušenky | G12: 40
A13: VŠIMNĚTE SI Vyberte tyto buňky. Pak v pravém dolním rohu okna Excelu hledejte údaj Součet: 170. Tomuto dolnímu pruhu se říká stavový řádek a představuje další způsob, jak rychle najít součet a další podrobnosti o vybrané buňce nebo oblasti. | C13: Buchty | D13: 50 | F13: Buchty | G13: 50
A14: DŮLEŽITÝ DETAIL Poklikejte na tuto buňku. Na konci si všimněte čísla 100. Přestože je možné takto do vzorce vkládat čísla, nedoporučujeme to, pokud to není absolutně nutné. Říká se tomu konstanta a snadno se zapomene, že tam je. Doporučujeme místo toho použít odkaz na jinou buňku, třeba F51. Tak je dobře na očích a není schovaný ve vzorci. | C14: Koláče | D14: 20 | F14: Koláče | G14: 20
A15: Další informace na webu | C15: SUMA > | F15: POČET >
A16: Všechny informace o funkci SUMA
A17: Sčítání čísel pomocí tlačítka Automatické shrnutí
A18: Všechny informace o funkci POČET
A19: Bezplatná školení k Excelu online
A20: Zpět nahoru
A21: Další krok
C34: Ovoce | D34: Množství
C35: Jablka | D35: 50
C36: Pomeranče | D36: 20
C37: Banány | D37: 60
C38: Citrony | D38: 40
C39: SUMA > | D39: =SUM(D35:D38) -> 170
C44: Položka | D44: Množství
C45: Auta | D45: 20
C46: Nákladní auta | D46: 10
C47: Jízdní kola | D47: 10
C48: Brusle | D48: 40
D50: Celkem: | F50: Další hodnota | G50: Nový součet
D51: =SUM(D45:D48,100) -> 180 | F51: 100 | G51: =SUM(D45:D48,F51) -> 180

Sheet PRŮMĚR
A1: Funkce PRŮMĚR
A2: Pomocí funkce PRŮMĚR můžete získat průměr z čísel v oblasti buněk. | C2: Ovoce | D2: Množství | F2: Maso | G2: Množství
A3: Vyberte buňku D7 a pomocí nabídky u tlačítka Automatické shrnutí přidejte funkci PRŮMĚR. | C3: Jablka | D3: 50 | F3: Hovězí | G3: 50
A4: Teď vyberte buňku G7 a zadejte funkci PRŮMĚR ručně – napište =PRŮMĚR(G3:G6). | C4: Pomeranče | D4: 20 | F4: Kuřecí | G4: 30
A5: V buňce D15 můžete pomocí nabídky u tlačítka Automatické shrnutí nebo ručně zadat další funkci PRŮMĚR. | C5: Banány | D5: 60 | F5: Vepřové | G5: 10
A6: VŠIMNĚTE SI Když vyberete libovolnou oblast čísel, můžete průměr okamžitě zjistit na stavovém řádku. | C6: Citrony | D6: 40 | F6: Ryby | G6: 50
A7: Aktivovat předchozí list | C7: PRŮMĚR > | F7: PRŮMĚR >
A8: Přejít na další list
A9: BONUS Zkuste tu použít funkci MEDIAN nebo MODE. Funkce MEDIAN vrátí hodnotu uprostřed množiny dat, zatímco funkce MODE vrátí hodnotu, která se vyskytuje nejčastěji. | C9: Položka | D9: Množství | F9: Položka | G9: Množství
A10: Odkazy na další informace na webu | C10: Chleba | D10: 50 | F10: Chleba | G10: 50
A11: Pomocí této možnosti zobrazíte všechny informace o funkci PRŮMĚR na webu. | C11: Koblihy | D11: 100 | F11: Koblihy | G11: 100
A12: Pomocí této možnosti zobrazíte všechny informace o funkci MEDIAN na webu. | C12: Sušenky | D12: 40 | F12: Sušenky | G12: 40
A13: Pomocí této možnosti zobrazíte všechny informace o funkci MODE na webu. | C13: Buchty | D13: 50 | F13: Buchty | G13: 50
A14: Pomocí této možnosti můžete přejít na bezplatná školení k Excelu na webu. | C14: Koláče | D14: 20 | F14: Koláče | G14: 20
C15: PRŮMĚR >

Sheet MIN a MAX
A1: Funkce MIN a MAX
A2: Pomocí funkce MIN můžete zjistit nejmenší číslo v oblasti buněk. | C2: Ovoce | D2: Množství | F2: Maso | G2: Množství
A3: Pomocí funkce MAX můžete zjistit největší číslo v oblasti buněk. | C3: Jablka | D3: 50 | F3: Hovězí | G3: 50
A4: Vyberte buňku D7 a pomocí průvodce automatickým shrnutím přidejte funkci MIN. | C4: Pomeranče | D4: 20 | F4: Kuřecí | G4: 30
A5: Teď vyberte buňku G7 a zadejte ručně funkci MAX – napište =MAX(G3:G6). | C5: Banány | D5: 60 | F5: Vepřové | G5: 10
A6: V buňce D15 můžete pomocí průvodce automatickým shrnutím nebo ručně zadat funkci MIN nebo MAX. | C6: Citrony | D6: 40 | F6: Ryby | G6: 50
A7: Další informace na webu | C7: MIN > | F7: MAX >
A8: Všechny informace o funkci MIN
A9: Všechny informace o funkci MAX | C9: Položka | D9: Množství | F9: Položka | G9: Množství
A10: Bezplatná školení k Excelu online | C10: Chleba | D10: 50 | F10: Chleba | G10: 50
A11: JE DOBRÉ VĚDĚT Funkce MIN a MAX můžete použít s více oblastmi, například =MIN(A1:A10;B1:B10). Můžete také použít prahovou hodnotu, třeba =MAX(A1:A10;B1), kde prahovou hodnotu obsahuje buňka B1. Kdyby v ní bylo číslo 10, tak by vzorec nikdy nevrátil výsledek menší než 10. | C11: Koblihy | D11: 100 | F11: Koblihy | G11: 100
C12: Sušenky | D12: 40 | F12: Sušenky | G12: 40
C13: Buchty | D13: 50 | F13: Buchty | G13: 50
C14: Koláče | D14: 20 | F14: Koláče | G14: 20
C15: MIN nebo MAX > | G15: =MIN(G10:G14,10) -> 10

Sheet Datum a čas
A1: Datové funkce
A2: Excel vám může ukázat aktuální datum podle místních nastavení vašeho počítače. Kalendářní data jde také sčítat a odečítat.
A3: Vyzkoušejte si funkci DNES, která vám ukáže dnešní datum. Jde o jednu z dynamických, stále přepočítávaných funkcí, takže pokud byste sešit otevřeli zítra, bylo by v něm zítřejší datum. Zadejte funkci =DNES() do buňky D6.
A4: Odečítání kalendářních dat – Zadejte datum svých příštích narozenin do buňky D7 a podívejte se, jak vám Excel ukáže, kolik dní do nich zbývá, pomocí vzorce =D7-D6 v buňce D8.
A5: Sčítání kalendářních dat – Řekněme, že chcete zjistit, k jakému datu je splatná nějaká faktura nebo kdy musíte vrátit knížku do knihovny. Můžete to zjistit přičtením počtu dnů k datu. Do buňky D10 zadejte libovolný počet dní. Do buňky D11 jsme přidali vzorec =D6+D10, který vypočítá datum splatnosti od aktuálního dne. | C5: Datové funkce
A6: JE DOBRÉ VĚDĚT Excel uchovává kalendářní data a časy jako počet dní od 1. ledna 1900. Časy se uchovávají jako desetinné části dne na základě minut. Datum a čas 1. 1. 2017, 12:30 se tak ve skutečnosti uloží jako 42736,5208. Pokud se vám čas nebo datum zobrazí jako takovéto číslo, můžete stisknout Ctrl+1 > Číslo > vybrat formát Datum nebo Čas. | C6: Dnešní datum: | F6: =IF(D6=TODAY(),"You got it!","") -> 
A7: DŮLEŽITÝ DETAIL Pokud nechcete, aby Excel zobrazoval záporné číslo, když jste ještě narozeniny nezadali, můžete využít funkci KDYŽ, a to takto: =KDYŽ(D7="";"";D7-D6). Tento vzorec znamená: Pokud je buňka D7 prázdná, nezobrazí se nic, v opačném případě se zobrazí výsledek D7 minus D6. | C7: Vaše narozeniny:
A8: Časové funkce | C8: Počet dnů do vašich narozenin: | D8: =D7-D6 -> 0
A9: Excel vám může ukázat aktuální čas podle místních nastavení vašeho počítače. Časy jde také sčítat a odečítat. Můžete například potřebovat udržovat záznamy o tom, kolik hodin odpracoval zaměstnanec každý měsíc, a podle toho vypočítat jeho výplatu a přesčasy.
A10: Do buňky D28 zadejte =NYNÍ(). Tím získáte aktuální čas, který se bude aktualizovat pokaždé, když Excel přepočítá sešit. Pokud potřebujete změnit formát času, můžete stisknout Ctrl+1 > Číslo > Čas > vybrat požadovaný formát. | C10: Poskytnutá lhůta ve dnech:
A11: Sečtení hodin mezi časy – Do buňky D36 jsme zadali vzorec =((D35-D32)-(D34-D33))*24, který vypočítá rozdíl mezi příchodem a odchodem zaměstnance a odečte od něj dobu strávenou na obědě. Výraz *24 na konci vzorce převede desetinnou část dne, kterou Excel vypočítá, na počet hodin. Buňku bude ale potřeba naformátovat jako číslo. Postup je tento: Přejděte na Domů > Formát > Buňky (Ctrl+1) > Číslo > Číslo > 2 desetinná místa. | C11: Datum splatnosti faktury: | D11: =D6+D10 -> 00:00:00
A12: Pokud by tento vzorec mohl mluvit, řekl by: Vezme se odchod z práce a odečte se od něj příchod do práce, pak se odečte rozdíl mezi příchodem z oběda a odchodem na oběd a výsledek se vynásobí číslem 24, aby se desetinná hodnota času v Excelu převedla na hodiny. Dalo by se to také vyjádřit takto: =((Odchod - Příchod)-(Odchod na oběd - Příchod z oběda))*24.
A13: Předchozí
A14: Další
A15: Další informace na webu
A16: Všechny informace o funkci DNES
A17: Všechny informace o funkci NYNÍ
A18: Všechny informace o funkci DATUM
A19: Bezplatná školení k Excelu online
C27: Časové funkce
C28: Aktuální čas:
C31: Odpracované hodiny za den
C32: Příchod: | D32: 08:00:00
C33: Odchod na oběd: | D33: 12:00:00
C34: Příchod z oběda: | D34: 13:00:00
C35: Odchod: | D35: 17:00:00
C36: Hodiny celkem: | D36: =((D35-D32)-(D34-D33))*24 -> 8
C45: Statické datum a čas
C46: Datum: | D46: 2017-09-27
C47: Čas: | D47: 08:52:00

Sheet Spojování textu a čísel
A1: Spojování textu z různých buněk
A2: V Excelu se často stává, že chcete spojit text, který je v různých buňkách. Běžným příkladem je situace, kdy máte křestní jména a příjmení a chcete je spojit do celých jmen. V Excelu to naštěstí můžeme jednoduše udělat pomocí znaku &, který se dá zadat kombinací kláves Ctrl+Alt+C. | C2: Jméno | D2: Příjmení | E2: Příjmení, jméno | F2: Jméno a příjmení
A3: V buňce E3 zkuste spojit jméno a příjmení zadáním vzorce =D3&C3. | C3: Jana | D3: Blažková | E3: =D3&", "&C3 -> Blažková, Jana | F3: =C3&" "&D3 -> Jana Blažková
A4: Jméno BlažkováJana ale nevypadá moc dobře. Potřebujeme přidat čárku a mezeru. Uděláme to tak, že pomocí uvozovek vytvoříme nový textový řetězec. Tentokrát zadejte =D3&", "&C3. Část &", "& nám umožnila spojit čárku a mezeru s hodnotami buněk. | C4: Ondřej | D4: Kubát
A5: Když budeme chtít vytvořit celé jméno s křestním jménem na začátku, využijeme znovu mezeru, ale bez čárky. Do buňky F3 zadejte =C3&" "&D3. | C5: Jan | D5: Macek
A6: Podívat se na to podrobněji | C6: Marie | D6: Marková
A7: Další | C7: Stanislav | D7: Tomek
A8: Společné použití textu a čísel | C8: Michal | D8: Formánek
A9: Teď pomocí znaku & nebudeme spojovat dvě textové hodnoty, ale texty a čísla. Podívejte se na buňky C28:D29. Vidíte datum a čas v samostatných buňkách? Když je rychle spojíte s texty pomocí znaku & způsobem, který vidíte v buňkách C32:C33, výsledek nevypadá moc dobře, že? Excel bohužel neví, jak chcete formátovat čísla, takže použije jejich nejzákladnější formát, kterým je v tomto případě pořadové datum. Excelu musíme výslovně říct, jakým způsobem chceme číselnou část vzorce formátovat, aby se ve výsledném textovém řetězci zobrazila požadovaným způsobem. Můžete to udělat pomocí funkce HODNOTA.NA.TEXT a kódu formátu. | C9: Rudolf | D9: Spousta
A10: Do buňky C36 zadejte =C28&" "&HODNOTA.NA.TEXT(D28;"DD.MM.RRRR"). DD.MM.RRRR je kód českého formátu den. měsíc. rok, například 25. 09. 2017. | C10: Ivana | D10: Červenková
A11: Do buňky C37 zadejte =C29&" "&HODNOTA.NA.TEXT(D29;"H:MM"). H:MM je kód českého formátu hodiny:minuty, například 13:30.
A12: VŠIMNĚTE SI Vzorce, hlavně ty delší, může být někdy trochu těžší přečíst. Mohlo by ale pomoct, když si jednotlivé části rozdělíte pomocí mezer, například takto: =C28 & " " & HODNOTA.NA.TEXT(D28;"D. M. RRRR")
A13: BUDE SE HODIT Pokud nevíte, jaký kód formátu použít, můžete stisknout Ctrl+1 > Číslo a nastavit požadovaný formát buňky. Pak vyberte možnost Vlastní. Kód formátu, který se zobrazí, pak můžete zkopírovat do svého vzorce.
A14: Další informace na webu
A15: Všechny informace o funkci HODNOTA.NA.TEXT
A16: Spojování textu a čísel
A17: Bezplatná školení k Excelu online
C27: Použití textu a čísel
C28: Dnešní datum: | D28: =TODAY() -> 2021-10-19
C29: Aktuální čas: | D29: =NOW() -> 44488.37846
C31: Spojování textu a čísel
C32: =C28&" "&D28 -> Dnešní datum: 44488
C33: =C29&" "&D29 -> Aktuální čas: 44488.3784628472
C35: Formátování textu a čísel
C36: =C28 &" "& TEXT(D28,"DD.MM.RRRR") -> Dnešní datum: 19.10.RRRR
C37: =C29&" "&TEXT(D29,"H:MM") -> Aktuální čas: 9:04

Sheet Příkazy KDYŽ
A1: Příkazy KDYŽ
A2: Příkazy KDYŽ umožňují provádět logická porovnání podmínek. Příkaz KDYŽ obecně říká, že pokud je jedna podmínka splněná, má se něco udělat, jinak se má udělat něco jiného. Vzorce můžou vrátit text, hodnoty, nebo dokonce i další výpočty.
A3: Do buňky D9 zadejte =KDYŽ(C9="Jablko";PRAVDA;NEPRAVDA). Správná odpověď je PRAVDA.
A4: Zkopírujte buňku D9 do buňky D10. Tady by výsledek měl být NEPRAVDA, protože pomeranč není jablko.
A5: Vyzkoušejte si další příklad. Podívejte se na vzorec v buňce D12. Je tu napsané =KDYŽ(C12<100;"Menší než 100";"Větší než 100"). Co se stane, když do buňky C12 zadáte číslo větší než 100?
A6: DŮLEŽITÝ DETAIL Slova PRAVDA a NEPRAVDA se liší od jiných slov v excelových vzorcích tím, že se nemusí uzavírat do uvozovek a že je Excel automaticky nastavuje na velká písmena. Čísla také nemusí být v uvozovkách. Běžný text, jako jsou slova Ano a Ne, musí být v uvozovkách: =KDYŽ(C9=“Jablko“,“Ano“,“Ne“)
A7: Podívat se na to podrobněji
A8: Další | C8: Příkazy KDYŽ
A9: Příkaz KDYŽ s další funkcí | C9: Jablko
A10: Příkazy KDYŽ můžou také vynucovat, aby se v případě splnění nějaké podmínky provedly další výpočty. Tady vyhodnocením buňky zjistíme, jestli by se měla naúčtovat DPH, a pokud bude podmínka splněná, vypočítáme její hodnotu. | C10: Pomeranč
A11: Do buňky F33 jsme zadali =KDYŽ(E33="Ano";F31*DPH;0), přičemž DPH jsme nastavili jako pojmenovanou oblast s hodnotou 0,0825. Náš vzorec říká, že pokud se buňka E33 rovná Ano, pak se má buňka F31 vynásobit hodnotou DPH, jinak se má vrátit 0. Zkuste hodnotu v buňce E33 změnit z Ano na Ne a uvidíte, jak se výpočet změní.
A12: Dále jsme přidali příkaz KDYŽ, který v případě potřeby vypočítá dopravné. V buňce F35 uvidíte vzorec =KDYŽ(E35="Ano";SUMA(D28:D29)*1,25;0). Tento vzorec říká: Pokud je v buňce E35 hodnota Ano, tak se vezme součet ze sloupce Množství v tabulce výše a vynásobí se hodnotou 1,25. V opačném případě se vrátí 0. | C12: 50 | D12: =IF(C12<100,"Menší než 100","Větší než 100") -> Menší než 100
A13: Pak ještě změňte hodnotu 1,25 ve vzorci v buňce F35 na slovo Doprava. Když ho začnete psát, funkce automatických oprav Excelu by vám ho měla automaticky nabídnout. Až se to stane, můžete ho zadat stisknutím klávesy Tab. Jedná se o pojmenovanou oblast, kterou jsme zadali příkazem Vzorce > Definovat název. Pokud teď budete potřebovat změnit svoje náklady na dopravu, stačí to udělat na jednom místě a název Doprava můžete použít kdekoliv v sešitu.
A14: JE DOBRÉ VĚDĚT Když vytváříte vzorec, Excel automaticky umístí barevná ohraničení kolem oblastí, na které vzorec odkazuje, a odpovídající oblasti ve vzorci budou mít stejnou barvu. Podívat se na to můžete, když vyberete buňku F33 a stisknete klávesu F2, která umožňuje upravit vzorec.
A15: TIP PRO ODBORNÍKA Pojmenované oblasti umožňují definovat podmínky nebo hodnoty na jednom místě a opakovaně je používat v celém sešitu. Všechny pojmenované oblasti v tomto sešitu můžete zobrazit tak, že přejdete na Vzorce > Správce názvů. Kliknutím sem zobrazíte další informace.
A16: Předchozí
A17: Další
A18: Další informace na webu
A19: Všechny informace o funkci KDYŽ
A20: Všechny informace o funkci IFS
A21: Pokročilé příkazy KDYŽ
A22: Bezplatná školení k Excelu online
C27: Položka | D27: Množství | E27: Cena | F27: Celkem
C28: Pomůcka | D28: 2 | E28: 9.76 Kč | F28: ='Příkazy KDYŽ'!$E$28:$E$29*'Příkazy KDYŽ'!$D$28:$D$29 -> 19.52 Kč
C29: Drobnost | D29: 3 | E29: 3.42 Kč | F29: ='Příkazy KDYŽ'!$E$28:$E$29*'Příkazy KDYŽ'!$D$28:$D$29 -> 10.26 Kč
D31: Mezisoučet | E31: =SUM('Příkazy KDYŽ'!$E$28:$E$29) -> 13.18 Kč | F31: =SUM('Příkazy KDYŽ'!F28:F29) -> 29.78 Kč
D33: DPH? | E33: Ano | F33: =IF(E33="Ano",F31*DPH,0) -> 2.46 Kč
D35: Doprava? | E35: Ano | F35: =IF(E35="Ano",SUM(D28:D29)*1.25,0) -> 6.25 Kč
D37: Celkem | F37: =SUM(F33,F31,F35) -> 38.48 Kč

Sheet SVYHLEDAT
A1: SVYHLEDAT
A2: Funkce SVYHLEDAT je jednou z nejčastěji používaných funkcí Excelu (a také jedna z našich nejoblíbenějších). Funkce SVYHLEDAT umožňuje hledat hodnotu ve sloupci vlevo, a když najde shodu, vrátí informace z jiného sloupce napravo. Funkce SVYHLEDAT říká:
A3: =SVYHLEDAT(A1;B:C;2;NEPRAVDA)
A4: Co chcete hledat?
A5: Pokud to najdete, o kolik sloupců napravo chcete získat hodnotu?
A6: Kde to chcete hledat?
A7: Požadujete přesnou nebo přibližnou shodu?
A8: Do buňky D22 zadejte =SVYHLEDAT(C22;C17:D20;2;NEPRAVDA). Správná odpověď pro Jablka je 50. Funkce SVYHLEDAT hledala text Jablka, našla ho, pak přešla o jeden sloupec doprava a vrátila množství.
A9: Teď si to vyzkoušejte sami v buňce G22 v části Maso. Měli byste dojít ke vzorci =SVYHLEDAT(F22;F17:G20;2;NEPRAVDA).
A10: EXPERIMENT Zkuste v rozevíracích seznamech vybírat různé položky. Uvidíte, že buňky s výsledky se okamžitě zaktualizují a objeví se v nich nové hodnoty.
A11: Podívat se na to podrobněji
A12: Další
A13: Funkce SVYHLEDAT a chyba #NENÍ_K_DISPOZICI
A14: Dříve nebo později asi narazíte na situaci, kdy funkce SVYHLEDAT nemůže najít, co jste chtěli, a vrátí chybu (#NENÍ_K_DISPOZICI). Někdy je to proto, že hledaná hodnota jednoduše neexistuje. Dalším důvodem může být, že v odkazované buňce ještě není žádná hodnota.
A15: Pokud víte, že hledaná hodnota existuje, a chcete skrýt chybu, pokud je vyhledávací buňka prázdná, můžete použít příkaz KDYŽ. V tomto případě zabalíme stávající vzorec s funkcí SVYHLEDAT v buňce D43 takto: =KDYŽ(C43="";"";SVYHLEDAT(C43;C37:D41;2;NEPRAVDA)) Tento vzorec říká, že pokud v buňce C43 nic není (""), nemá se nic vracet. V opačném případě se má vrátit výsledek funkce SVYHLEDAT. Všimněte si druhé pravé závorky na konci vzorce. Ta uzavírá příkaz KDYŽ.
A16: Pokud si nejste jistí, jestli hledaná hodnota existuje, ale přesto chcete chybu #NENÍ_K_DISPOZICI potlačit, můžete v buňce G43 použít funkci pro zpracování chyb IFERROR: =IFERROR(SVYHLEDAT(F43;F37:G41;2;NEPRAVDA);""). Tato funkce IFERROR říká, že když funkce SVYHLEDAT vrátí platný výsledek, tak se má zobrazit, v opačném případě se nemá zobrazovat nic (""). Tady jsme se rozhodli nezobrazovat nic (""), ale mohli byste také zobrazit nějaké číslo (0,1, 2 apod.) nebo text, například „Vzorec není správný“. | C16: Ovoce | D16: Množství | F16: Maso | G16: Množství
A17: DŮLEŽITÝ DETAIL Funkce IFERROR se označuje jako paušální obslužná rutina chyb, což znamená, že potlačí všechny chyby, které může vzorec vrátit. To může způsobit problémy, pokud vám Excel chce oznámit, že ve vzorci je nějaká skutečná chyba, kterou je třeba opravit. Empirické pravidlo říká, že do vzorců byste neměli obslužné rutiny chyb přidávat, pokud si nejste naprosto jistí, že budou správně fungovat. | C17: Jablka | D17: 50 | F17: Hovězí | G17: 50
A18: Předchozí | C18: Pomeranče | D18: 20 | F18: Kuřecí | G18: 30
A19: Další | C19: Banány | D19: 60 | F19: Vepřové | G19: 10
A20: Další informace na webu | C20: Citrony | D20: 40 | F20: Ryby | G20: 50
A21: Všechny informace o funkci SVYHLEDAT
A22: Všechny informace o funkcích INDEX a POZVYHLEDAT | C22: Jablka | F22: Vepřové
A23: Všechny informace o funkci IFERROR
A24: Použití kontingenční tabulky k analýze dat listu
A25: Bezplatná školení k Excelu online
C35: Pokud by funkce SUMA v buňce D42 mohla mluvit, řekla by toto: Sečíst hodnoty v buňkách D38, D39, D40 a D41.
C36: Položka | D36: Množství | F36: Položka | G36: Množství
C37: Chleba | D37: 50 | F37: Chleba | G37: 50
C38: Koblihy | D38: 100 | F38: Koblihy | G38: 100
C39: Sušenky | D39: 40 | F39: Sušenky | G39: 40
C40: Buchty | D40: 50 | F40: Buchty | G40: 50
C41: Koláče | D41: 20 | F41: Koláče | G41: 20
D43: =VLOOKUP(C43,C37:D41,2,FALSE) ->  | F43: Cukroví | G43: =IFERROR(VLOOKUP(F43,F37:G41,2,FALSE),"") -> 

Sheet Podmíněné funkce
A1: Podmíněné funkce – SUMIF
A2: Podmíněné funkce umožňují vypočítat součet, průměr nebo počet anebo najít minimum nebo maximum pro oblast na základě dané podmínky nebo kritéria, které určíte. Můžete třeba zjistit, kolik je v seznamu ovoce jablek. Nebo kolik pomerančů je floridských. | C2: Ovoce | D2: Množství | F2: Ovoce | G2: Typ | H2: Množství | Z2: Ovoce | AB2: Jablka | AD2: Pomeranče | AF2: Banány | AH2: Citrony
A3: Funkce SUMIF umožňuje sečíst jednu oblast na základě specifického kritéria, které hledáte v jiné oblasti, například kolik máte jablek. Vyberte buňku D17 a zadejte =SUMIF(C3:C14;C17;D3:D14). Funkce SUMIF má tuto strukturu: | C3: Jablka | D3: 50 | F3: Jablka | G3: Jonagold | H3: 50 | Z3: Jablka | AB3: Jonagold | AD3: Floridské | AF3: Cavendish | AH3: Verna
A4: =SUMIF(C3:C14,C17,D3:D14) -> 150 | C4: Pomeranče | D4: 20 | F4: Pomeranče | G4: Floridské | H4: 20 | Z4: Pomeranče | AB4: Rubín | AD4: Navel | AF4: Baby | AH4: Primofiori
A5: Jakou oblast chcete prohledat? | C5: Banány | D5: 60 | F5: Banány | G5: Cavendish | H5: 60 | Z5: Banány
A6: Jakou hodnotu (text nebo číslo) chcete hledat? | C6: Citrony | D6: 40 | F6: Citrony | G6: Verna | H6: 40 | Z6: Citrony
A7: Jakou oblast chcete pro každou shodu sečíst? | C7: Jablka | D7: 50 | F7: Jablka | G7: Rubín | H7: 50
A8: Funkce SUMIFS je stejná jako funkce SUMIF, ale umožňuje použít více kritérií. V tomto příkladu tedy budete moct hledat podle sloupců Ovoce a Typ (na rozdíl od předchozího, kdy se hledalo jenom podle sloupce Ovoce). Vyberte buňku H17 a zadejte =SUMIFS(H3:H14;F3:F14;F17;G3:G14;G17). Funkce SUMIFS má tuto strukturu: | C8: Pomeranče | D8: 20 | F8: Pomeranče | G8: Navel | H8: 20
A9: =SUMIFS(H3:H14;F3:F14;F17;G3:G14;G17) | C9: Banány | D9: 60 | F9: Banány | G9: Baby | H9: 60
A10: Jakou oblast chcete sečíst? | C10: Citrony | D10: 40 | F10: Citrony | G10: Primofiori | H10: 40
A11: Toto je první oblast, ve které se mají hledat shody. | C11: Jablka | D11: 50 | F11: Jablka | G11: Rubín | H11: 50
A12: Toto je kritérium pro první shodu. | C12: Pomeranče | D12: 20 | F12: Pomeranče | G12: Navel | H12: 20
A13: Toto je druhá oblast, ve které se mají hledat shody. | C13: Banány | D13: 60 | F13: Banány | G13: Cavendish | H13: 60
A14: Toto je kritérium pro druhou shodu. | C14: Citrony | D14: 40 | F14: Citrony | G14: Primofiori | H14: 40
A15: TIP PRO ODBORNÍKA V buňkách pro výběr ovoce a typu jsou rozevírací seznamy, které vám pomůžou vybrat různé typy ovoce. Vyzkoušejte si to a sledujte, jak se budou výsledky vzorce automaticky aktualizovat.
A16: Podívat se na to podrobněji | C16: Ovoce | D16: SUMIF | F16: Ovoce | G16: Typ | H16: SUMIFS
A17: Další krok | C17: Jablka | F17: Pomeranče | G17: Floridské
A18: Podmíněné funkce – COUNTIF
A19: Funkce COUNTIF a COUNTIFS umožňují počítat hodnoty v oblasti podle kritéria, které zadáte. Od ostatních funkcí končících na IF a IFS se trochu liší tím, že mají jenom oblast, kde se vyhodnocuje kritérium, a samotné kritérium. Nevyhodnocují tedy jednu oblast s tím, že by potom sečítaly druhou oblast.
A20: Vyberte buňku D64 a zadejte =COUNTIF(C50:C61;C64). Funkce COUNTIF má tuto strukturu:
A21: =COUNTIF(C50:C61;C64)
A22: Jakou oblast chcete prohledat?
A23: Jakou hodnotu (text nebo číslo) chcete hledat?
A24: Funkce COUNTIFS je stejná jako funkce COUNTIF, ale umožňuje použít více kritérií. V tomto příkladu tedy budete moct hledat podle sloupců Ovoce a Typ (na rozdíl od předchozího, kdy se hledalo jenom podle sloupce Ovoce). Vyberte buňku H64 a zadejte =COUNTIFS(F50:F61;F64;G50:G61;G64). Funkce COUNTIFS má tuto strukturu:
A25: =COUNTIFS(F50:F61;F64;G50:G61;G64)
A26: Toto je první oblast, ve které se mají počítat shody.
A27: Toto je kritérium pro první shodu.
A28: Toto je druhá oblast, ve které se mají počítat shody.
A29: Toto je kritérium pro druhou shodu.
A30: Podívat se na to podrobněji
A31: Další
A32: Další podmíněné funkce
A33: Už jste viděli funkce SUMIF, SUMIFS, COUNTIF a COUNTIFS. Teď si můžete sami vyzkoušet další funkce, třeba AVERAGEIF/S, MAXIFS a MINIFS. Všechny mají stejnou strukturu, takže když máte hotový jeden vzorec, stačí v něm jenom nahrazovat název funkce. Připravili jsme vám všechny funkce, které si můžete vyzkoušet v buňce E106. Můžete je tam buď zkopírovat a vložit, nebo je zkuste v zájmu procvičení napsat sami ručně. SUMIF =SUMIF(C92:C103;C106;E92:E103) SUMIFS =SUMIFS(E92:E103;C92:C103;C106;D92:D103;D106) AVERAGEIF =AVERAGEIF(C92:C103;C106;E92:E103) AVERAGEIFS =AVERAGEIFS(E92:E103;C92:C103;C106;D92:D103;D106) COUNTIF =COUNTIF(C92:C103;C106) COUNTIFS =COUNTIFS(C92:C103;C106;D92:D103;D106) MAXIFS =MAXIFS(E92:E103;C92:C103;C106;D92:D103;D106) MINIFS =MINIFS(E92:E103;C92:C103;C106;D92:D103;D106)
A34: Podívat se na to podrobněji
A35: Další
A36: Funkce SUMIF s hodnotovým argumentem
A37: Tady je příklad funkce SUMIF, která pomocí operátoru větší než (>) hledá všechny hodnoty větší než zadané číslo:
A38: =SUMIF(D118:D122,">=50") -> 200
A39: Sečíst několik hodnot založených na tomto kritériu:
A40: ...Prostudovat tyto buňky...
A41: ...a pokud je hodnota větší než 50, sečíst.
A42: POZNÁMKA: Pokud zjistíte, že vytváříte hodně podmíněných vzorců, možná by pro vás byla lepším řešením kontingenční tabulka. Další informace najdete v tomto článku o kontingenčních tabulkách.
A43: Další informace na webu
A44: Všechny informace o funkci SUMIF
A45: Všechny informace o funkci SUMIFS
A46: Všechny informace o funkci COUNTIF
A47: Všechny informace o funkci COUNTIFS
A48: Všechny informace o funkci AVERAGEIF
A49: Všechny informace o funkci AVERAGEIFS | C49: Ovoce | D49: Množství | F49: Ovoce | G49: Typ | H49: Množství
A50: Všechny informace o funkci MINIFS | C50: Jablka | D50: 50 | F50: Jablka | G50: Jonagold | H50: 50
A51: Všechny informace o funkci MAXIFS | C51: Pomeranče | D51: 20 | F51: Pomeranče | G51: Floridské | H51: 20
A52: Vytvoření rozevíracího seznamu | C52: Banány | D52: 60 | F52: Banány | G52: Cavendish | H52: 60
A53: Bezplatná školení k Excelu online | C53: Citrony | D53: 40 | F53: Citrony | G53: Verna | H53: 40
A54: Zpět nahoru | C54: Jablka | D54: 50 | F54: Jablka | G54: Rubín | H54: 50
A55: Další | C55: Pomeranče | D55: 20 | F55: Pomeranče | G55: Navel | H55: 20
C56: Banány | D56: 60 | F56: Banány | G56: Baby | H56: 60
C57: Citrony | D57: 40 | F57: Citrony | G57: Primofiori | H57: 40
C58: Jablka | D58: 50 | F58: Jablka | G58: Rubín | H58: 50
C59: Pomeranče | D59: 20 | F59: Pomeranče | G59: Navel | H59: 20
C60: Banány | D60: 60 | F60: Banány | G60: Cavendish | H60: 60
C61: Citrony | D61: 40 | F61: Citrony | G61: Primofiori | H61: 40
C63: Ovoce | D63: COUNTIF | F63: Ovoce | G63: Typ | H63: COUNTIFS
C64: Jablka | D64: =COUNTIF(C50:C61,C64) -> 3 | F64: Pomeranče | G64: Floridské | H64: =COUNTIFS(F50:F61,F64,G50:G61,G64) -> 1
C91: Ovoce | D91: Typ | E91: Množství
C92: Jablka | D92: Jonagold | E92: 50
C93: Pomeranče | D93: Floridské | E93: 20
C94: Banány | D94: Cavendish | E94: 60
C95: Citrony | D95: Verna | E95: 40
C96: Jablka | D96: Rubín | E96: 50
C97: Pomeranče | D97: Navel | E97: 20
C98: Banány | D98: Baby | E98: 60
C99: Citrony | D99: Primofiori | E99: 40
C100: Jablka | D100: Rubín | E100: 50
C101: Pomeranče | D101: Navel | E101: 20
C102: Banány | D102: Cavendish | E102: 60
C103: Citrony | D103: Primofiori | E103: 40
C105: Ovoce | D105: Typ | E105: Zkuste si to
C106: Citrony | D106: Primofiori | E106: =AVERAGEIFS(E92:E103,C92:C103,C106,D92:D103,D106) -> 40
C117: Položka | D117: Množství
C118: Chleba | D118: 50
C119: Koblihy | D119: 100
C120: Sušenky | D120: 40
C121: Buchty | D121: 50
C122: Koláče | D122: 20
D123: =SUMIF(D118:D122,">=50") -> 200

Sheet Průvodce funkcemi
A1: Nechejte si poradit od průvodce funkcemi
A2: Pokud znáte název funkce, kterou chcete použít, ale nevíte, jak přesně vytvořit vzorec, může vám pomoct průvodce funkcemi.
A3: Vyberte buňku D10 a pak přejděte na Vzorce > Vložit funkci > do pole Vyhledat funkci zadejte SVYHLEDAT a stiskněte Přejít. Až uvidíte zvýrazněnou funkci SVYHLEDAT, klikněte dole na OK. Když funkci vyberete v seznamu, Excel zobrazí její syntaxi.
A4: Dalším krokem je zadat argumenty funkce do příslušných textových polí. Excel zadávané argumenty vyhodnotí a zobrazí jejich výsledek. Pod nimi potom zobrazí konečný výsledek. Při zadávání jednotlivých argumentů se v dolní části formuláře zobrazí jejich kritéria. Až všechno zadáte, stiskněte OK a Excel vzorec vloží do sešitu. | C4: Ovoce | D4: Množství
A5: VŠIMNĚTE SI Měli byste dojít ke vzorci =SVYHLEDAT(C10;C5:D8;2;NEPRAVDA). | C5: Jablka | D5: 50
A6: JE DOBRÉ VĚDĚT Odkazy na buňky a oblasti můžete napsat na klávesnici nebo je můžete vybrat myší. | C6: Pomeranče | D6: 20
A7: JE DOBRÉ VĚDĚT Při zadávání jednotlivých argumentů se v dolní části formuláře poblíž výsledku vzorce zobrazí jejich popis. | C7: Banány | D7: 60
A8: Předchozí | C8: Citrony | D8: 40
A9: Další
A10: Další informace na webu | C10: Jablka | D10: =VLOOKUP(C10,C5:D8,2,FALSE) -> 50
A11: Přehled vzorců v Excelu
A12: Funkce Excelu (podle kategorie)
A13: Funkce Excelu (podle abecedy)
A14: Bezplatná školení k Excelu online

Sheet Chyby ve vzorcích
A1: Oprava chyb ve vzorcích
A2: Dříve nebo později určitě narazíte na vzorec, který obsahuje chybu, což Excel zobrazí jako #NázevChyby. Chyby můžou být užitečné, protože upozorní na to, že něco nefunguje správným způsobem, ale může být obtížné je opravit. Naštěstí je ale k dispozici několik možností, které vám pomůžou najít příčinu chyby a opravit ji.
A3: Kontrola chyb – Přejděte na Vzorce > Kontrola chyb. Načte se dialogové okno, které vám vysvětlí obecnou příčinu vaší konkrétní chyby. V buňce D9 je chyba #NENÍ_K_DISPOZICI kvůli tomu, že nešlo najít hodnotu Jablko. Tuto chybu můžete vyřešit tím, že použijete hodnotu, která skutečně existuje, nebo ji můžete potlačit pomocí funkce IFERROR. Můžete ji také ignorovat s tím, že budete vědět, že až použijete existující hodnotu, chyba zmizí. | C3: Ovoce | D3: Množství
A4: Pokud kliknete na Nápověda k této chybě, otevře se téma nápovědy specifické pro danou chybovou zprávu. Když kliknete na Zobrazit kroky výpočtu, načte se dialogové okno Vyhodnotit vzorec. | C4: Jablka | D4: 50
A5: Při každém kliknutí na Vyhodnotit provede Excel jeden krok ve vzorci. Nemusí vám při tom přesně říct, proč k chybě dochází, ale ukáže vám, kdy k ní dojde. Pak se podívejte na příslušné téma nápovědy a zkuste vyvodit, co je ve vzorci špatně. | C5: Pomeranče | D5: 20
A6: EXPERIMENT Co je tu špatně? Rada: Zkoušíme SUMArizovat všechny položky. | C6: Banány | D6: 60
A7: JE DOBRÉ VĚDĚT Když kliknete na Možnosti, můžete nastavit pravidla, kdy se chyby v Excelu mají zobrazit nebo ignorovat. | C7: Citrony | D7: 40
A8: Předchozí
A9: Další | C9: Jablko | D9: =VLOOKUP(C9,C3:D7,2,FALSE) -> 
A10: Další informace na webu
A11: Zjišťování chyb ve vzorcích
A12: Jak se vyhnout nefunkčním vzorcům
A13: Vyhodnocování vnořených vzorců po jednotlivých krocích
A14: Bezplatná školení k Excelu online
C30: Ovoce | D30: Množství
C31: Jablka | D31: 50
C32: Pomeranče | D32: 20
C33: Banány | D33: 60
C34: Citrony | D34: 40
C36: Celkem | D36: =sume(D31:D34) -> 

Sheet Další informace
A1: Máte k Excelu další otázky?
A2: Stiskněte Alt+Ě a napište, co chcete vědět.
A3: Pokračujte dál. S Excelem se toho dá naučit ještě více:
A4: LinkedIn Learning: Videokurzy pro všechny úrovně – od začátečníků po pokročilé. Pracujte s nimi vlastním tempem.
A5: Komunita: Ptejte se a spojte se s dalšími fanoušky Excelu.
A6: Co ještě je nového? Předplatitelé služeb Office 365 dostávají nepřetržité aktualizace a nové funkce.
